fUSD/lending_fUSD_20240617
["ID","MTS","AMOUNT","RATE_DAILY","PERIOD"]
[329732819,1718629847114,-6793.24879637,0.000273,13]
[329732822,1718629847145,-1032.75,0.000273,13]
[329732824,1718629847162,-1058.55765,0.000273,13]
[329732844,1718629847452,-369.56846571,0.00026,2]
[329732846,1718629847467,-15534.51933874,0.000273,13]
[329732848,1718629847505,-109760.61419552,0.000273,13]
[329732850,1718629847524,-17.66604632,0.000273,13]
[329732852,1718629847547,-1194.48351368,0.000273,5]
[329732855,1718629847577,-228869.57621506,0.000273,5]
[329732857,1718629847591,-1596.30903577,0.000273,5]
[329732859,1718629847608,-6985.61950846,0.000273,5]
[329732861,1718629847628,-1508.7644094,0.000273,5]
[329732863,1718629847644,-393.29106466,0.000273,5]
[329732864,1718629847660,-2312.35954751,0.000273,5]
[329732866,1718629847674,-442.99999994,0.000273,5]
[329732889,1718629848083,-2210.09018497,0.000273,5]
[329732891,1718629848106,-8718.39890091,0.000273,5]
[329732893,1718629848143,-1910.35010174,0.000273,5]
[329732896,1718629848170,-703.21674875,0.000273,5]
[329732898,1718629848183,-578.32706232,0.000273,5]
[329732918,1718629848571,-6561.17940955,0.00026366,2]
[329732920,1718629848589,-2796.05999973,0.00026366,2]
[329732922,1718629848605,-421.57059072,0.00026366,2]
[329732924,1718629848618,-1127.92907223,0.000273,5]
[329732926,1718629848632,-1340.7132365,0.000273,5]
[329732928,1718629848648,-265.845,0.000273,5]
[329732929,1718629848670,-302.97,0.000273,5]
[329732932,1718629848717,-296.99,0.000273,5]
[329732958,1718629849101,-2837.55534816,0.000273,5]
[329732963,1718629849122,-11356.31233505,0.000273,5]
[329732966,1718629849144,-505.848733,0.000273,5]
[329732968,1718629849173,-4071.3950287,0.000273,5]
[329732971,1718629849195,-255.58512387,0.000273,5]
[329733026,1718629850144,-922.60802642,0.000272,2]
[329733028,1718629850159,-209.23301289,0.00027299,2]
[329733031,1718629850195,-1709.1769082,0.00027299,2]
[329733282,1718629858776,155.0,0.0002,2]
[329733283,1718629875694,669.46697903,0.00017259,2]
[329733284,1718629878703,155.0,0.0002,2]
[329733285,1718629896973,169.05354648,0.0002,2]
[329733288,1718629922803,546.46139874,0.00017259,2]
[329733289,1718629923078,150.0,0.00019725,2]
[329733290,1718629929456,4620.61640161,0.00017259,2]
[329733292,1718629937212,507.39570669,0.00017259,2]
[329733294,1718629995664,200.0,0.00027467,120]
[329733295,1718630045128,300.0,0.00019725,2]
[329733297,1718630077252,226.83513534,0.000201,2]
[329733298,1718630089222,226.83513534,0.00020474,2]
[329733299,1718630090550,2302.61996026,0.0002,2]
[329733302,1718630493588,245.12,0.00024712,30]
[329733303,1718630644571,2374.48,0.000275,120]
[329733323,1718631034349,-155.0,0.00017257,2]
[329733324,1718631034388,-259.99573651,0.00017258,2]
[329733325,1718631034401,-2467.0,0.000186,2]
[329733326,1718631034414,-150.0,0.00019451,2]
[329733327,1718631034430,-499.99,0.0002,2]
[329733328,1718631034442,-226.83513534,0.000201,2]
[329733329,1718631034454,-151.32,0.00020239,2]
[329733330,1718631034467,-150.78,0.0002076,2]
[329733331,1718631034482,-1250.0,0.00021,2]
[329733332,1718631034494,-303.96,0.00021364,2]
[329733333,1718631034506,-611.8,0.00021364,2]
[329733334,1718631034517,-151.24,0.00021367,2]
[329733335,1718631034532,-151.76,0.00021372,2]
[329733336,1718631034547,-163.8,0.00021372,2]
[329733337,1718631034562,-150.59,0.00021374,2]
[329733338,1718631034592,-153.39,0.00021379,2]
[329733339,1718631034607,-300.0,0.00021384,2]
[329733340,1718631034637,-209.0,0.00021396,2]
[329733341,1718631034652,-406.31,0.00022605,2]
[329733342,1718631034680,-722.664,0.00023434,2]
[329733343,1718631034704,-346.065,0.00023434,2]
[329733344,1718631034715,-1719.86012816,0.00023434,2]
[329733345,1718631034979,-248.13987184,0.00023434,2]
[329733346,1718631034990,-681.177,0.00023434,2]
[329733347,1718631035001,-547.0,0.00023434,2]
[329733348,1718631035012,-5162.0,0.00023434,2]
[329733349,1718631035029,-290.0,0.00023434,2]
[329733350,1718631035044,-1196.0,0.00023434,2]
[329733351,1718631035057,-1271.378,0.00023434,2]
[329733352,1718631035076,-469.4,0.00024203,2]
[329733353,1718631035087,-170.76,0.00024218,2]
[329733354,1718631035101,-250.0,0.00024267,2]
[329733355,1718631035118,-575.76,0.00024384,2]
[329733356,1718631035132,-155.7,0.0002448,2]
[329733357,1718631035144,-2751.0,0.00024505,2]
[329733358,1718631035162,-250.0,0.00024509,2]
[329733359,1718631035174,-174.8,0.0002451,2]
[329733360,1718631035192,-1511.16,0.00024623,2]
[329733361,1718631035221,-211.83,0.00024721,2]
[329733362,1718631035236,-200.0,0.00024734,2]
[329733363,1718631035264,-406.31,0.00024869,2]
[329733364,1718631035279,-1000.0,0.00024937,2]
[329733365,1718631035291,-150.0,0.00025809,2]
[329733366,1718631035302,-329.63309289,0.00026,2]
[329733367,1718631035326,-174.8,0.00026144,2]
[329733368,1718631035386,-181.013135,0.00026165,2]
[329733369,1718631035401,-234.593023,0.00026165,2]
[329733370,1718631035412,-3975.4625,0.00026411,10]
[329733371,1718631035436,-181.0662753,0.00026428,2]
[329733372,1718631035447,-936.28789574,0.00026429,2]
[329733373,1718631035512,-545.0,0.00026434,2]
[329733374,1718631035526,-1066.689,0.00026434,2]
[329733375,1718631035553,-232.291,0.00026434,2]
[329733377,1718631035580,-1183.036,0.00026434,2]
[329733380,1718631035638,-456.98079654,0.00026453,2]
[329733382,1718631035651,-234.593023,0.00026493,2]
[329733384,1718631035662,-154.20081626,0.00026521,2]
[329733386,1718631035678,-852.03,0.00026548,2]
[329733388,1718631035697,-418.01,0.00026548,2]
[329733392,1718631035726,-418.01,0.00026548,2]
[329733394,1718631035737,-852.03,0.00026548,2]
[329733396,1718631035766,-852.03,0.00026548,2]
[329733398,1718631035796,-151.58,0.00026548,2]
[329733400,1718631035809,-217.68109108,0.00026556,2]
[329733402,1718631035826,-936.28789574,0.00026565,2]
[329733404,1718631035861,-155.63458022,0.00026625,2]
[329733405,1718631035925,-171.32584172,0.00026636,2]
[329733408,1718631035952,-802.37214209,0.00026752,2]
[329733411,1718631036000,-155.63458022,0.00026787,2]
[329733413,1718631036030,-394.76997997,0.00026798,2]
[329733414,1718631036058,-152.37970437,0.00026817,2]
[329733416,1718631036071,-181.013135,0.0002682,2]
[329733418,1718631036083,-234.593023,0.0002682,2]
[329733421,1718631036113,-294.61446051,0.000269,2]
[329733423,1718631036129,-500.0,0.00026903,2]
[329733425,1718631036145,-936.28789574,0.00026913,2]
[329733426,1718631036156,-152.37970437,0.00026947,2]
[329733427,1718631036171,-456.98079654,0.00026971,2]
[329733430,1718631036223,-201.53660926,0.00026988,2]
[329733432,1718631036270,-2611.40457787,0.00026999,4]
[329733434,1718631036281,-2000.0,0.00026999,3]
[329733437,1718631036318,-2000.0,0.00026999,2]
[329733440,1718631036380,-5962.0514,0.00027,2]
[329733443,1718631036434,-256.25803548,0.0002701,2]
[329733445,1718631036453,-588.39087731,0.00027027,4]
[329733447,1718631036475,-152.6839455,0.00027054,2]
[329733449,1718631036493,-500.0,0.00027082,2]
[329733452,1718631036554,-200.0,0.00027082,2]
[329733454,1718631036566,-9847.76,0.00027092,2]
[329733455,1718631036579,-500.0,0.000271,2]
[329733457,1718631036592,-176405.98,0.000271,2]
[329733459,1718631036620,-383.5341,0.000271,2]
[329733461,1718631036644,-936.28789574,0.00027106,2]
[329733463,1718631036672,-783.98283393,0.00027129,2]
[329733464,1718631036693,-406.31,0.00027133,2]
[329733466,1718631036726,-234.593023,0.00027147,2]
[329733467,1718631036738,-936.28789574,0.00027159,2]
[329733469,1718631036760,-256.25803548,0.00027165,2]
[329733472,1718631036801,-180.0,0.00027173,2]
[329733474,1718631036817,-456.98079654,0.00027189,2]
[329733475,1718631036830,-330.85478835,0.00027199,2]
[329733477,1718631036854,-168.93400681,0.000272,2]
[329733480,1718631036866,-10000.0,0.000272,2]
[329733482,1718631036910,-5133.203,0.000272,2]
[329733484,1718631036945,-1000.0,0.000272,2]
[329733486,1718631036987,-27449.93034529,0.000272,2]
[329733488,1718631037005,-1000.0,0.000272,2]
[329733491,1718631037052,-179.39771079,0.000272,2]
[329733493,1718631037064,-672.0,0.000272,2]
[329733495,1718631037094,-7500.0,0.000272,2]
[329733497,1718631037117,-180.40976621,0.000272,2]
[329733499,1718631037128,-175.01167186,0.000272,5]
[329733501,1718631037140,-343.04939925,0.000272,2]
[329733503,1718631037151,-355.0,0.000272,2]
[329733504,1718631037172,-3694.60520408,0.000272,2]
[329733505,1718631037185,-152.37970437,0.00027222,2]
[329733507,1718631037198,-250.97052246,0.0002726,2]
[329733509,1718631037210,-3504.68864211,0.00027273,2]
[329733511,1718631037231,-165.17737501,0.0002729,2]
[329733514,1718631037252,-152.21,0.0002729,2]
[329733515,1718631037289,-152.21,0.0002729,2]
[329733518,1718631037310,-152.21,0.0002729,2]
[329733520,1718631037328,-152.21,0.0002729,2]
[329733523,1718631037347,-155.63458022,0.00027293,2]
[329733525,1718631037395,-155.0,0.00027295,2]
[329733527,1718631037409,-18975.74204427,0.00027298,2]
[329733530,1718631037433,-204.99679615,0.00027298,2]
[329733532,1718631037451,-2559.96948321,0.00027298,2]
[329733535,1718631037471,-155.61904457,0.00027298,2]
[329733537,1718631037490,-155.60039783,0.00027298,2]
[329733539,1718631037529,-1607.21613717,0.00027298,2]
[329733541,1718631037556,-297.09796804,0.00027298,2]
[329733543,1718631037577,-435.98926893,0.00027298,2]
[329733545,1718631037620,-205.8241592,0.00027298,2]
[329733547,1718631037643,-155.0,0.00027298,2]
[329733549,1718631037672,-645.50901128,0.00027298,2]
[329733551,1718631037688,-4479.24610841,0.00027298,2]
[329733553,1718631037721,-242.67952649,0.00027298,2]
[329733555,1718631037747,-255.91381025,0.00027298,3]
[329733557,1718631037771,-1710.79122942,0.00027298,2]
[329733560,1718631037791,-204.03400987,0.00027298,2]
[329733562,1718631037825,-193.13213728,0.00027298,2]
[329733564,1718631037842,-179.5664158,0.00027298,2]
[329733566,1718631037864,-156.21833582,0.00027298,2]
[329733569,1718631037916,-544.67780636,0.00027298,2]
[329733571,1718631037933,-386.83254794,0.00027298,2]
[329733574,1718631037984,-1808.03095238,0.00027298,2]
[329733576,1718631037998,-3959.95580288,0.00027298,2]
[329733579,1718631038022,-620.85616807,0.00027298,2]
[329733580,1718631038049,-155.0,0.00027298,2]
[329733582,1718631038063,-649.43721582,0.00027298,2]
[329733584,1718631038077,-1017.83777918,0.00027298,2]
[329733587,1718631038099,-189.7696383,0.00027298,2]
[329733589,1718631038143,-399.52266653,0.00027298,2]
[329733591,1718631038184,-11833.59454646,0.00027298,2]
[329733593,1718631038207,-187.74893441,0.00027298,2]
[329733596,1718631038255,-865.86350875,0.00027298,2]
[329733598,1718631038271,-3273.02843957,0.00027298,2]
[329733600,1718631038292,-313.46115937,0.00027298,2]
[329733602,1718631038337,-338.86135952,0.00027298,2]
[329733605,1718631038362,-617.0,0.00027299,2]
[329733607,1718631038376,-150.0,0.00027299,10]
[329733609,1718631038392,-150.0,0.00027299,10]
[329733612,1718631038412,-209.23301289,0.00027299,2]
[329733614,1718631038431,-5903.55757461,0.00027299,2]
[329733616,1718631038445,-5559.08971455,0.00027299,2]
[329733849,1718631044069,-345.0,0.00023434,2]
[329733852,1718631044093,-722.0,0.00023434,2]
[329733853,1718631044105,-277.0,0.00026434,2]
[329733855,1718631044122,-445.4892,0.00026434,2]
[329733907,1718631044929,-515.16738893,0.00023434,2]
[329733912,1718631044953,-295.83261107,0.00023434,2]
[329733916,1718631044990,-167.43290185,0.00026434,2]
[329733919,1718631045018,-177.07789815,0.00026434,2]
[329733924,1718631045051,-811.0,0.00026434,2]
[329733927,1718631045066,-60616.87531096,0.00027299,2]
[329733930,1718631045084,-500.0,0.00027299,8]
[329733933,1718631045111,-1500.0,0.00027299,7]
[329733936,1718631045145,-1470.52579444,0.00027299,7]
[329733939,1718631045168,-500.0,0.00027299,8]
[329733945,1718631045261,-500.0,0.00027299,8]
[329733950,1718631045301,-500.0,0.00027299,2]
[329733959,1718631045338,-165.44645123,0.00027299,2]
[329733962,1718631045354,-446.16216842,0.00027299,2]
[329733965,1718631045381,-500.0,0.00027299,2]
[329733968,1718631045395,-643.47518817,0.00027299,2]
[329733971,1718631045408,-313.46215415,0.00027299,2]
[329733973,1718631045436,-500.0,0.00027299,2]
[329733977,1718631045461,-134512.16256074,0.000273,13]
[329733980,1718631045489,-1286.51473513,0.000273,13]
[329733987,1718631045537,-15802.94418487,0.000273,5]
[329733992,1718631045592,-6571.9,0.000273,5]
[329734101,1718631047432,-555.0,0.000273,2]
[329734103,1718631047445,-3047.739721,0.000273,5]
[329734213,1718631049577,-852.03,0.00026548,2]
[329734215,1718631049608,-11.46897506,0.000273,5]
[329734218,1718631049644,-7966.45742432,0.000273,5]
[329734221,1718631049716,-2123.95717,0.000273,5]
[329734245,1718631050304,-226.83513534,0.00020474,2]
[329734247,1718631050336,-617.0,0.00023464,2]
[329734249,1718631050372,-259.99573651,0.00027298,2]
[329734250,1718631050385,-3148.50987757,0.000273,5]
[329734252,1718631050409,-5692.73974398,0.000273,5]
[329734258,1718631050569,-156.04,0.00024384,2]
[329734259,1718631050604,-361.50584311,0.00026464,2]
[329734260,1718631050625,-253.49415689,0.00026464,2]
[329734261,1718631050640,-155.0,0.00027299,2]
[329734263,1718631050653,-2391.50584311,0.000273,5]
[329734265,1718631050688,-720.46482117,0.000273,5]
[329734267,1718631050701,-989379.03750668,0.000273,5]
[329734269,1718631050764,-52132.80809534,0.000273,5]
[329734270,1718631050786,-2669.91110232,0.000273,5]
[329734271,1718631050824,-3000.61291491,0.000273,5]
[329734288,1718631052766,-537.26,0.00023464,2]
[329734289,1718631052787,-442.0,0.00026464,2]
[329734290,1718631052864,-294.61446051,0.00027299,2]
[329734291,1718631052885,-1733.56544275,0.000273,5]
[329734292,1718631052903,-752039.89896047,0.000273,5]
[329734293,1718631052922,-6716.45429562,0.000273,5]
[329734294,1718631053535,-28860.47167821,0.000273,5]
[329734295,1718631053792,-253.39,0.000273,5]
[329734296,1718631063342,3263.69,0.00026348,62]
[329734299,1718631224957,300000.0,0.00014,2]
[329734300,1718631225091,413.11293854,0.00014,2]
[329734303,1718631593684,224.79,0.00023983,30]
[329734307,1718632127604,206.05,0.00023118,30]
[329734329,1718632236197,-253.92599679,0.00013876,2]
[329734330,1718632236211,-339.37755264,0.00013877,2]
[329734331,1718632236225,-259.99573651,0.00013878,2]
[329734332,1718632236252,-179.39771078,0.000139,2]
[329734333,1718632236320,-172.15105615,0.000139,2]
[329734334,1718632236361,-348.95748955,0.0001399,2]
[329734335,1718632236404,-203.94857317,0.0001399,2]
[329734336,1718632236423,-182.32054246,0.00013998,2]
[329734337,1718632236441,-537.93879391,0.00013998,2]
[329734338,1718632236488,-518.95648126,0.00013998,2]
[329734339,1718632236515,-449.30986604,0.00013999,2]
[329734340,1718632236553,-300.0,0.00013999,2]
[329734341,1718632236567,-5474.9887271,0.00014,2]
[329734342,1718632236584,-266.95294903,0.00014,2]
[329734343,1718632236597,-7163.23471616,0.00014,2]
[329734344,1718632236611,-12049.53630709,0.00014,2]
[329734345,1718632236972,-3414.86143555,0.00014,2]
[329734346,1718632236999,-393.9,0.00014,2]
[329734347,1718632237059,-531.27879764,0.00014,2]
[329734348,1718632237079,-542.6302,0.00014,2]
[329734349,1718632237106,-124094.80933441,0.00014,2]
[329734350,1718632237148,-4057.32454602,0.00014,2]
[329734358,1718632242006,-327.42238633,0.000139,2]
[329734359,1718632242018,-675.64464164,0.00014,2]
[329734360,1718632242039,-2001.0587,0.00014,2]
[329734361,1718632242100,-7646.57086215,0.00014,2]
[329734362,1718632242125,-396.053,0.00014,2]
[329734363,1718632242143,-3410.0,0.00014,2]
[329734364,1718632242161,-3042.51251388,0.00014,2]
[329734413,1718632245779,-715.32634339,0.00014,2]
[329734418,1718632245812,-429.33999969,0.00014,2]
[329734425,1718632245865,-498.87388707,0.00014,2]
[329734432,1718632246394,-332879.94043103,0.00014,2]
[329734433,1718632246910,-328.39001,0.00014,2]
[329734437,1718632246924,-1119.64228968,0.00014,2]
[329734443,1718632246957,-7142.54499776,0.00014,2]
[329734448,1718632246989,-842.14131203,0.00014,2]
[329734451,1718632247018,-14998.65449995,0.00014,2]
[329734512,1718632248020,-253.92599679,0.00013999,2]
[329734513,1718632248049,-1012.53535415,0.00014,2]
[329734524,1718632249016,-6038.6441839,0.00014,2]
[329734526,1718632249033,-1058.73833896,0.00014,2]
[329734528,1718632249047,-661.1649,0.00014,2]
[329734530,1718632249062,-719.95798759,0.00014,2]
[329734581,1718632250242,-200.26787582,0.00013999,2]
[329734584,1718632250259,-588.60157664,0.00014,2]
[329734586,1718632250278,-35540.24015262,0.00014,2]
[329734598,1718632698673,272.46,0.00021589,30]
[329734599,1718632701135,1852.24218539,0.000105,2]
[329734600,1718632729484,548391.18616012,0.000105,2]
[329734601,1718632729879,300.00836122,0.000105,2]
[329734602,1718632742479,299.79059261,0.000105,2]
[329734603,1718632744558,1364.80333341,0.000105,2]
[329734604,1718632745782,109904.52950158,0.000105,2]
[329734605,1718632747337,155.0,0.000105,2]
[329734606,1718632756228,20288.85785676,0.000105,2]
[329734607,1718632758870,1363.6787058,0.000105,2]
[329734608,1718632765668,160.92330524,0.000105,2]
[329734609,1718632774099,1689.45875739,0.000105,2]
[329734610,1718632778595,193.34886011,0.00010499,2]
[329734611,1718632803543,150.0,0.000105,2]
[329734612,1718632803801,150.0,0.000105,2]
[329734619,1718633177496,739.34,0.00010783,2]
[329734620,1718633385527,249.75,0.00021589,30]
[329734654,1718633440211,-155.0,0.00012037,2]
[329734656,1718633440241,-529.20485847,0.00012037,2]
[329734657,1718633440269,-32.51404817,0.00012038,2]
[329734658,1718633440349,-177.25837466,0.00012038,2]
[329734659,1718633440389,-131.54904934,0.00012039,2]
[329734666,1718633441462,-128.44668717,0.00012039,2]
[329734667,1718633441481,-140.55331333,0.0001204,2]
[329734668,1718633441497,-422.30351567,0.0001204,2]
[329734669,1718633441525,-2825.87632769,0.00012099,2]
[329734670,1718633441543,-158.9647594,0.00012298,2]
[329734671,1718633441593,-150.0,0.00012565,2]
[329734672,1718633441609,-23900.0,0.00012566,2]
[329734673,1718633441628,-366.43,0.00012583,2]
[329734674,1718633441641,-499.99,0.00012583,2]
[329734675,1718633441652,-7012.48326077,0.00012597,2]
[329734676,1718633441665,-569.73,0.00012597,2]
[329734677,1718633441678,-424.17889072,0.00012598,2]
[329734678,1718633441704,-150.0,0.00012657,2]
[329734679,1718633441718,-939.22,0.00012749,2]
[329734680,1718633441731,-216.01,0.00012816,2]
[329734681,1718633441746,-770.33,0.00012842,2]
[329734682,1718633441759,-250.0,0.00012853,2]
[329734683,1718633441775,-168.73,0.0001287,2]
[329734684,1718633441800,-2078.79,0.0001287,2]
[329734685,1718633441822,-250.0,0.00012897,2]
[329734686,1718633441847,-739.34,0.00013047,2]
[329734687,1718633441874,-963.80544357,0.000133,2]
[329734688,1718633441885,-626.72009064,0.00013438,2]
[329734689,1718633441900,-499.99,0.00013624,2]
[329734690,1718633441915,-646.93,0.00013699,2]
[329734691,1718633441957,-1418.96,0.00013699,2]
[329734692,1718633441988,-700.0,0.000137,5]
[329734693,1718633441999,-249.83,0.00013726,2]
[329734694,1718633442010,-249.83,0.00013764,2]
[329734695,1718633442033,-1500.0,0.000138,5]
[329734696,1718633442045,-249.83,0.00013801,2]
[329734697,1718633442064,-202.70403289,0.00013808,2]
[329734698,1718633442075,-210.0,0.00013821,2]
[329734700,1718633442088,-383.65473788,0.00013836,2]
[329734701,1718633442102,-249.83,0.00013839,2]
[329734702,1718633442115,-3000.0,0.0001386,2]
[329734703,1718633442153,-249.83,0.00013877,2]
[329734704,1718633442188,-13317.241937,0.0001389,2]
[329734705,1718633442220,-219.51,0.0001389,3]
[329734706,1718633442244,-7913.8596,0.00013898,2]
[329734707,1718633442264,-671.41567093,0.00013898,2]
[329734708,1718633442276,-181.27433181,0.000139,2]
[329734709,1718633442293,-35009.9324,0.000139,2]
[329734710,1718633442317,-1981.7326,0.000139,2]
[329734711,1718633442361,-2188.73305665,0.000139,2]
[329734712,1718633442380,-171.39309846,0.000139,2]
[329734713,1718633442392,-171.07258408,0.000139,2]
[329734714,1718633442421,-2200.0,0.000139,5]
[329734715,1718633442445,-327.60466193,0.000139,2]
[329734716,1718633442465,-354.87716378,0.000139,2]
[329734717,1718633442490,-77.64009336,0.000139,2]
[329734718,1718633442563,-179.6533468,0.000139,2]
[329734719,1718633442580,-671.41567093,0.000139,2]
[329734720,1718633442605,-249.83,0.00013914,2]
[329734721,1718633442618,-249.83,0.00013952,2]
[329734722,1718633442630,-4027.06288892,0.00013985,2]
[329734739,1718633443391,-593.55351269,0.00013985,2]
[329734740,1718633443408,-21.95615888,0.00013988,3]
[329734741,1718633443444,-327.85685687,0.00013988,3]
[329734742,1718633443459,-274.81698425,0.00013988,3]
[329734743,1718633443498,-24.84806294,0.00013989,2]
[329734744,1718633443534,-224.98193706,0.00013989,2]
[329734745,1718633443566,-216.4255137,0.0001399,2]
[329734746,1718633443603,-3277.18293924,0.00013998,2]
[329734747,1718633443671,-62753.46377156,0.00013998,2]
[329734748,1718633443688,-886.6124525,0.00013998,2]
[329734749,1718633443705,-833.36001832,0.00013998,2]
[329734750,1718633443730,-537.12016184,0.00013998,2]
[329734753,1718633443811,-4153.25500256,0.00013998,2]
[329734754,1718633443825,-3188.38584379,0.00013998,2]
[329734755,1718633444284,-2816.99074986,0.00013998,2]
[329734756,1718633444300,-3070.85958003,0.00013998,2]
[329734757,1718633444325,-3264.4575,0.00013998,2]
[329734758,1718633444343,-34661.45487099,0.00013998,2]
[329734759,1718633444361,-258.37137548,0.00013998,2]
[329734760,1718633444400,-546.46139874,0.00013998,2]
[329734761,1718633444432,-507.39570669,0.00013998,2]
[329734762,1718633444475,-193.1365617,0.00013998,2]
[329734763,1718633444530,-669.46697903,0.00013998,2]
[329734764,1718633444576,-382.73488542,0.00013998,2]
[329734765,1718633444600,-1000.0,0.00013999,2]
[329734766,1718633444613,-96679.3412092,0.00014,2]
[329734767,1718633444669,-300.0,0.00014,2]
[329734768,1718633444694,-7191.2,0.00014,2]
[329734784,1718633445264,-1602202.7457996,0.00014,2]
[329734785,1718633445283,-3943.51369521,0.00014,2]
[329734793,1718633447572,-360.59979936,0.00014,2]
[329734816,1718633448380,-500.0,0.00012625,2]
[329734818,1718633448394,-2801.17314508,0.00014,2]
[329734821,1718633448422,-3270.35744937,0.00014,2]
[329734824,1718633448468,-2940.76085333,0.00014,2]
[329734842,1718633448883,-7214.08965425,0.00014,2]
[329734843,1718633448899,-17507.714408,0.00014,2]
[329734844,1718633449196,-175138.88380754,0.00014,2]
[329734845,1718633449213,-552.04753878,0.00014,2]
[329734846,1718633449229,-263.16768876,0.00014,2]
[329734847,1718633449267,-300.66724725,0.00014,2]
[329734848,1718633449281,-155.0,0.00014,2]
[329734849,1718633449317,-411.06881336,0.00014,2]
[329734850,1718633449367,-1178.29426012,0.00014,2]
[329734851,1718633449406,-18615.20662979,0.00014,2]
[329734852,1718633449430,-375.99192575,0.00014,2]
[329734853,1718633449456,-250.0,0.00014,2]
[329734854,1718633449498,-250.0,0.00014,2]
[329734855,1718633449524,-250.0,0.00014,2]
[329734856,1718633449537,-250.0,0.00014,2]
[329734857,1718633449568,-250.0,0.00014,2]
[329734858,1718633449587,-250.0,0.00014,2]
[329734859,1718633449603,-308.4,0.00014,2]
[329734860,1718633449621,-249.83,0.00014027,2]
[329734861,1718633449632,-249.83,0.00014065,2]
[329734862,1718633449642,-249.83,0.00014102,2]
[329734863,1718633449686,-249.83,0.0001414,2]
[329734864,1718633449700,-249.83,0.00014178,2]
[329734865,1718633449720,-249.83,0.00014215,2]
[329734866,1718633449732,-249.83,0.00014253,2]
[329734867,1718633449748,-249.83,0.00014291,2]
[329734868,1718633449758,-249.83,0.00014328,2]
[329734869,1718633449790,-249.83,0.00014366,2]
[329734870,1718633449816,-646.93,0.00014384,2]
[329734871,1718633449828,-249.83,0.00014404,2]
[329734872,1718633449860,-249.83,0.00014441,2]
[329734873,1718633449904,-621.96055235,0.00015,2]
[329734874,1718633449924,-646.93,0.00015068,2]
[329734875,1718633449935,-150.0,0.00015068,2]
[329734876,1718633449947,-2188.73305658,0.00015109,2]
[329734877,1718633449958,-240.0,0.00015203,2]
[329734878,1718633449969,-3058.14,0.00015237,2]
[329734879,1718633449979,-739.34,0.00015311,2]
[329734880,1718633449989,-2078.79,0.0001561,2]
[329734881,1718633450021,-432.51725711,0.00015676,2]
[329734882,1718633450043,-646.93,0.00015753,2]
[329734883,1718633450055,-168.8,0.00015831,2]
[329734884,1718633450067,-176.49,0.00015872,2]
[329734885,1718633450088,-168.73,0.00016087,2]
[329734886,1718633450101,-448.62765407,0.00016181,2]
[329734887,1718633450112,-2188.73305658,0.00016318,2]
[329734889,1718633450139,-2812.72037091,0.0001636,2]
[329734892,1718633450154,-187.27962909,0.0001636,2]
[329734895,1718633450172,-1418.78,0.00016438,2]
[329734897,1718633450186,-646.93,0.00016438,2]
[329734900,1718633450206,-168.8,0.00016702,2]
[329734903,1718633450222,-375.23498338,0.00017,2]
[329734905,1718633450236,-432.51725711,0.00017451,2]
[329734908,1718633450248,-2188.73305658,0.00017527,2]
[329734911,1718633450264,-168.8,0.00017573,2]
[329734916,1718633450338,-739.34,0.00017575,2]
[329734918,1718633450360,-192.18507384,0.00018,2]
[329734923,1718633450417,-458.20688009,0.00018,2]
[329734926,1718633450472,-1628.39085537,0.00018349,2]
[329734931,1718633450517,-450.39914463,0.00018349,2]
[329734934,1718633450553,-168.8,0.00018444,2]
[329734938,1718633450583,-500.0,0.000185,2]
[329734939,1718633450602,-1168.39241133,0.000186,2]